bitfinex-derivatives/quotes_BTCF0:USTF0_20260119
["timestamp","ask_amount","ask_price","bid_price","bid_amount"]
[1768789316984,0.02459624,92593.0,92577.0,0.09724]
[1768789317290,0.09960831,92596.0,92577.0,0.09724]
[1768789317489,0.12420455,92596.0,92580.0,0.010806]
[1768789317691,0.00237571,92604.0,92580.0,0.010806]
[1768789317692,0.00237571,92604.0,92586.0,0.12737638]
[1768789317990,0.00237571,92604.0,92586.0,0.11657138]
[1768789318187,0.00237571,92604.0,92587.0,0.03598562]
[1768789319792,0.00237571,92604.0,92589.0,0.02518062]
[1768789321087,0.09724,92618.0,92598.0,0.02518062]
[1768789321300,0.13724,92618.0,92599.0,0.02518062]
[1768789321792,0.13724,92618.0,92600.0,0.14594825]
[1768789322089,0.13724,92618.0,92600.0,0.17112887]
[1768789322288,0.12420455,92615.0,92597.0,0.09724]
[1768789322488,0.09960831,92615.0,92600.0,0.00016204]
[1768789322690,0.00237559,92609.0,92600.0,0.00016204]
[1768789323085,0.09960831,92621.0,92602.0,0.02518062]
[1768789323288,0.02,92621.0,92607.0,0.11657138]
[1768789323488,0.07720763,92630.0,92610.0,0.02518062]
[1768789323683,0.07720763,92631.0,92610.0,0.00589648]
[1768789323888,0.07720763,92631.0,92610.0,0.14594825]
[1768789324090,0.07720763,92632.0,92610.0,0.14594825]
[1768789324294,0.14594825,92630.0,92608.0,0.09724]
[1768789324495,0.20141218,92633.0,92610.0,0.14594825]
[1768789324700,0.14594825,92630.0,92610.0,0.23733901]
[1768789325289,0.07720763,92632.0,92610.0,0.23733901]
[1768789325490,0.14594825,92630.0,92611.0,0.09139076]
[1768789325692,0.09655341,92641.0,92626.0,0.09139076]
[1768789325990,0.09655341,92641.0,92617.0,0.010801]
[1768789325991,0.09655341,92647.0,92631.0,0.02518062]
[1768789326192,0.02237468,92644.0,92626.0,0.12242062]
[1768789326400,0.14594825,92640.0,92626.0,0.09724]
[1768789326602,0.00237468,92644.0,92628.0,0.00016195]
[1768789326795,0.14594825,92640.0,92628.0,0.00016195]
[1768789326997,0.00237468,92644.0,92628.0,0.00016195]
[1768789327197,0.01237468,92644.0,92628.0,0.00016195]
[1768789327999,0.14594825,92640.0,92628.0,0.00016195]
[1768789328299,0.00237468,92644.0,92629.0,0.02518062]
[1768789328497,0.00237468,92644.0,92630.0,0.14594825]
[1768789328699,0.00237468,92644.0,92629.0,0.02518062]
[1768789328894,0.09655341,92656.0,92635.0,0.02518062]
[1768789329095,0.14594825,92650.0,92631.0,0.02518062]
[1768789329400,0.09655341,92658.0,92637.0,0.02518062]
[1768789329604,0.1461102,92650.0,92637.0,0.12242062]
[1768789330195,0.1458102,92650.0,92637.0,0.09724]
[1768789330906,0.02459624,92652.0,92637.0,0.09724]
[1768789331100,0.19616172,92654.0,92637.0,0.09724]
[1768789331497,0.09655341,92655.0,92637.0,0.12242062]
[1768789331702,0.09655341,92656.0,92638.0,0.02518062]
[1768789331903,0.09655341,92656.0,92640.0,0.02518062]
[1768789332105,0.09655341,92657.0,92640.0,0.02518062]
[1768789332400,0.09960831,92657.0,92637.0,0.12242062]
[1768789332607,0.19616172,92658.0,92638.0,0.02518062]
[1768789332803,0.21616172,92658.0,92638.0,0.02518062]
[1768789333604,0.09655341,92658.0,92637.0,0.07872257]
[1768789333806,0.09655341,92660.0,92637.0,0.07872257]
[1768789334005,0.00016195,92657.0,92637.0,0.07872257]
[1768789334205,0.00016195,92657.0,92638.0,0.010799]
[1768789334508,0.00016195,92657.0,92642.0,0.010799]
[1768789334707,0.04276927,92694.0,92649.0,0.010798]
[1768789335003,0.09724,92699.0,92666.0,0.02518062]
[1768789335200,0.09724,92699.0,92672.0,0.010795]
[1768789335402,0.09724,92699.0,92675.0,0.02518062]
[1768789335604,0.12724,92699.0,92677.0,0.010794]
[1768789335804,0.12724,92699.0,92676.0,0.03597562]
[1768789335999,0.12724,92699.0,92679.0,0.02518062]
[1768789336206,0.03,92699.0,92681.0,0.02518062]
[1768789336400,0.00237314,92704.0,92681.0,0.02518062]
[1768789336600,0.12420529,92702.0,92680.0,0.09724]
[1768789336800,0.04,92702.0,92680.0,0.09724]
[1768789337008,0.12420455,92697.0,92680.0,0.09724]
[1768789337210,0.09960831,92697.0,92680.0,0.09724]
[1768789338308,0.11040131,92692.0,92679.0,0.00016186]
[1768789338513,0.12420455,92690.0,92679.0,0.0972]
[1768789339104,0.09960831,92690.0,92679.0,0.0972]
[1768789339306,0.09960831,92690.0,92669.0,0.02518062]
[1768789339513,0.09960831,92690.0,92676.0,0.0972]
[1768789340313,0.09960831,92690.0,92670.0,0.00016186]
[1768789340314,0.12420529,92689.0,92675.0,0.0972]
[1768789340516,0.12420455,92702.0,92677.0,0.02518062]
[1768789340715,0.2238136,92699.0,92677.0,0.02518062]
[1768789340906,0.2238136,92697.0,92675.0,0.0972]
[1768789341105,0.09960831,92697.0,92676.0,0.010795]
[1768789341305,0.09960831,92697.0,92676.0,0.03597562]
[1768789341506,0.2238136,92697.0,92676.0,0.03597562]
[1768789341706,0.09960831,92696.0,92676.0,0.03597562]
[1768789342417,0.09960831,92696.0,92675.0,0.0972]
[1768789342616,0.0961026,92695.0,92675.0,0.0972]
[1768789342917,0.19728767,92694.0,92671.0,0.02518062]
[1768789343112,0.0961026,92691.0,92672.0,0.0972]
[1768789343910,0.0961026,92691.0,92670.0,0.08490578]
[1768789344107,0.010792,92696.0,92672.0,0.08474392]
[1768789344306,0.0961026,92695.0,92672.0,0.08474392]
[1768789344606,0.0961026,92693.0,92673.0,0.0972]
[1768789345019,0.0961026,92695.0,92673.0,0.18194392]
[1768789345307,0.22030789,92695.0,92674.0,0.08474392]
[1768789345815,0.12420529,92694.0,92674.0,0.08474392]
[1768789346211,0.12420529,92693.0,92674.0,0.08474392]
[1768789346416,0.12420529,92694.0,92675.0,0.09716]
[1768789346717,0.12420529,92693.0,92675.0,0.09716]
[1768789346916,0.12420529,92692.0,92675.0,0.09716]
[1768789347218,0.12420529,92693.0,92675.0,0.09716]
[1768789347615,0.12420529,92692.0,92675.0,0.09716]
[1768789347813,0.12420529,92693.0,92675.0,0.09716]
[1768789348319,0.0961026,92695.0,92675.0,0.09716]
[1768789348320,0.12420529,92692.0,92675.0,0.09716]
[1768789348620,0.12420529,92693.0,92675.0,0.09716]
[1768789349119,0.12420529,92692.0,92675.0,0.09716]
[1768789349617,0.12420529,92691.0,92675.0,0.09716]
[1768789349818,0.12420529,92692.0,92675.0,0.09716]
[1768789350209,0.12420529,92691.0,92675.0,0.09716]
[1768789350409,0.12420529,92692.0,92674.0,0.08474392]
[1768789350606,0.12420529,92692.0,92637.0,0.03892004]
[1768789350607,0.010795,92673.0,92652.0,0.08474392]
[1768789350807,0.0961026,92676.0,92660.0,0.09716]
[1768789351007,0.010793,92689.0,92665.0,0.18708365]
[1768789351213,0.0961026,92691.0,92669.0,0.08474392]
[1768789351410,0.010793,92690.0,92671.0,0.08474392]
[1768789351609,0.010793,92690.0,92671.0,0.18190392]
[1768789351818,0.12420529,92689.0,92671.0,0.18190392]
[1768789352020,0.22030789,92689.0,92671.0,0.09716]
[1768789352216,0.1068966,92680.0,92657.0,0.09154373]
[1768789352522,0.0961026,92677.0,92658.0,0.09716]
[1768789354013,0.0961026,92677.0,92659.0,0.010797]
[1768789354421,0.0961026,92677.0,92662.0,0.010796]
[1768789354823,0.0961026,92677.0,92658.0,0.107957]
[1768789355124,0.0961026,92677.0,92669.0,0.00237405]
[1768789355511,0.12420529,92674.0,92669.0,0.00237405]
[1768789356015,0.12420529,92673.0,92669.0,0.00237405]
[1768789356215,0.12420529,92674.0,92669.0,0.00237405]
[1768789356416,0.12420529,92674.0,92658.0,0.09716]
[1768789356714,0.0961026,92677.0,92658.0,0.09716]
[1768789356920,0.0961026,92677.0,92657.0,0.08474392]
[1768789357312,0.0961026,92677.0,92659.0,0.010797]
[1768789358723,0.0961026,92677.0,92658.0,0.09716]
[1768789359423,0.0961026,92677.0,92652.0,0.01143642]
[1768789359424,0.09209368,92676.0,92653.0,0.11091242]
[1768789359614,0.09209368,92675.0,92654.0,0.09716]
[1768789360120,0.09209368,92675.0,92654.0,0.107957]
[1768789360718,0.09209368,92675.0,92654.0,0.09716]
[1768789361328,0.09209368,92669.0,92653.0,0.09716]
[1768789361529,0.09209368,92669.0,92653.0,0.107957]
[1768789361828,0.09209368,92669.0,92657.0,0.010797]
[1768789361829,0.12420529,92669.0,92657.0,0.010797]
[1768789362018,0.00016186,92670.0,92656.0,0.11091242]
[1768789362213,0.00016186,92670.0,92662.0,0.010796]
[1768789362527,0.09209368,92683.0,92666.0,0.010796]
[1768789362718,0.18925368,92683.0,92669.0,0.010795]
[1768789362918,0.12420529,92678.0,92669.0,0.010795]
[1768789363121,0.12410529,92676.0,92666.0,0.010796]
[1768789363321,0.12410529,92678.0,92666.0,0.010796]
[1768789363629,0.12410529,92676.0,92666.0,0.010796]
[1768789364021,0.12410529,92673.0,92666.0,0.010796]
[1768789364321,0.12410529,92676.0,92666.0,0.010796]
[1768789364817,0.18925368,92683.0,92663.0,0.21886842]
[1768789364818,0.12410529,92673.0,92663.0,0.21886842]
[1768789365020,0.12410529,92678.0,92665.0,0.010796]
[1768789365233,0.10288668,92693.0,92671.0,0.20258391]
[1768789365426,0.09209368,92693.0,92674.0,0.12170742]
[1768789365724,0.010792,92697.0,92674.0,0.12170742]
[1768789365725,0.10288568,92697.0,92675.0,0.09716]
[1768789365918,0.09209368,92696.0,92675.0,0.09716]
[1768789366123,0.09209368,92694.0,92675.0,0.09716]
[1768789366322,0.09209368,92692.0,92675.0,0.09716]
[1768789366829,0.09209368,92692.0,92675.0,0.09732186]
[1768789368927,0.09209368,92692.0,92675.0,0.10811686]
[1768789369726,0.09209368,92692.0,92678.0,0.010794]
[1768789370230,0.09209368,92692.0,92682.0,0.02913395]
[1768789370638,0.09209368,92692.0,92678.0,0.04971404]
[1768789370639,0.09209368,92692.0,92683.0,0.06064742]
[1768789370827,0.09209368,92692.0,92683.0,0.02913395]
[1768789371132,0.09209368,92692.0,92681.0,0.02913395]
[1768789371337,0.09209368,92692.0,92676.0,0.03892004]
[1768789371521,0.09209368,92692.0,92677.0,0.04203469]
[1768789371728,0.09209368,92695.0,92678.0,0.03123969]
[1768789371929,0.09209368,92695.0,92679.0,0.03123969]
[1768789372129,0.09209368,92695.0,92680.0,0.03123969]
[1768789372334,0.09209368,92695.0,92677.0,0.010795]
[1768789372633,0.09209368,92695.0,92678.0,0.03121733]
[1768789372834,0.09209368,92695.0,92679.0,0.03121733]
[1768789373033,0.09209368,92695.0,92680.0,0.03121733]
[1768789373233,0.09209368,92695.0,92678.0,0.11752322]
[1768789373435,0.09209368,92695.0,92679.0,0.03120757]
[1768789373637,0.09209368,92695.0,92679.0,0.010794]
[1768789374132,0.11175301,92695.0,92675.0,0.09732186]
[1768789374437,0.09189143,92692.0,92676.0,0.03037422]
[1768789374633,0.09189143,92692.0,92675.0,0.09732186]
[1768789374935,0.09189143,92692.0,92676.0,0.03037422]
[1768789375131,0.09189143,92692.0,92675.0,0.09732186]
[1768789375436,0.09189143,92695.0,92677.0,0.010795]
[1768789375931,0.09189143,92701.0,92687.0,0.010793]
[1768789376126,0.11412615,92704.0,92687.0,0.010793]
[1768789376127,0.00237314,92704.0,92688.0,0.11752322]
[1768789376332,1.4e-07,92704.0,92698.0,0.010792]
[1768789376729,1.4e-07,92704.0,92697.0,0.09716]
[1768789376931,1.4e-07,92704.0,92697.0,0.107952]
[1768789377130,1.4e-07,92704.0,92697.0,0.09716]
[1768789377332,0.09189143,92713.0,92697.0,0.09716]
[1768789380223,0.11175301,92708.0,92694.0,0.00016186]
[1768789380427,0.09426446,92709.0,92695.0,0.09716]
[1768789380428,0.20364444,92705.0,92695.0,0.09716]
[1768789380630,0.20364444,92704.0,92694.0,0.00016186]
[1768789381040,0.09189143,92704.0,92694.0,0.00016186]
[1768789381435,0.09189143,92704.0,92692.0,0.09716]
[1768789381829,0.09189143,92701.0,92692.0,0.09716]
[1768789382026,0.09189143,92701.0,92684.0,0.010794]
[1768789382027,0.09189143,92698.0,92679.0,0.03892004]
[1768789382234,0.09189143,92697.0,92680.0,0.12839595]
[1768789382544,0.09189143,92697.0,92680.0,0.09716]
[1768789382935,0.12254501,92697.0,92676.0,0.03892004]
[1768789383141,0.09189143,92691.0,92677.0,0.09716]
[1768789383843,0.09189143,92690.0,92677.0,0.09716]
[1768789384036,0.09189143,92688.0,92677.0,0.09716]
[1768789384346,0.09189143,92688.0,92671.0,0.010795]
[1768789384531,0.09189143,92688.0,92672.0,0.1279934]
[1768789384731,0.09189143,92688.0,92673.0,0.0308334]
[1768789384933,0.09189143,92688.0,92669.0,0.03892004]
[1768789384934,0.09189143,92687.0,92674.0,0.0308334]
[1768789385134,0.09189143,92686.0,92672.0,0.09716]
[1768789385332,0.09189143,92684.0,92668.0,0.03892004]
[1768789385541,0.09189143,92681.0,92669.0,0.03073473]
[1768789385741,0.00016186,92689.0,92667.0,0.09716]
[1768789385742,0.09189143,92678.0,92667.0,0.09716]
[1768789385943,0.00016186,92689.0,92668.0,0.010796]
[1768789385944,0.09189143,92684.0,92668.0,0.010796]
[1768789386144,0.09189143,92684.0,92667.0,0.09716]
[1768789386537,0.09189143,92684.0,92667.0,0.107956]
[1768789387247,0.00016186,92689.0,92669.0,0.21312624]
[1768789387449,0.00016186,92689.0,92670.0,0.21312624]
[1768789387653,0.00016186,92689.0,92671.0,0.21312624]
[1768789387842,0.00016186,92689.0,92667.0,0.19276302]
[1768789387843,0.00016186,92689.0,92672.0,0.21312624]
[1768789388040,0.00016186,92689.0,92673.0,0.11752322]
[1768789388542,0.00016186,92689.0,92674.0,0.010795]
[1768789388742,0.00016186,92689.0,92674.0,0.12831822]
[1768789389442,0.00016186,92689.0,92674.0,0.11752322]
[1768789389639,0.00016186,92689.0,92670.0,0.11752322]
[1768789390844,0.09189143,92688.0,92667.0,0.31028624]
[1768789391755,0.09189143,92688.0,92668.0,0.010795]
[1768789391956,0.11191487,92689.0,92667.0,0.09716]
[1768789391957,0.09189143,92685.0,92667.0,0.09716]
[1768789392153,0.20364444,92685.0,92667.0,0.09716]
[1768789392358,0.09189143,92684.0,92667.0,0.107956]
[1768789393247,0.11191487,92689.0,92669.0,0.010795]
[1768789393454,0.00016186,92689.0,92670.0,0.241045]
[1768789393656,0.00016186,92689.0,92677.0,0.22392024]
[1768789393854,0.00016186,92689.0,92679.0,0.14544198]
[1768789394155,0.00016186,92689.0,92678.0,0.11752322]
[1768789394367,0.09189143,92702.0,92680.0,0.11752322]
[1768789394857,0.09189143,92701.0,92680.0,0.11752322]
[1768789395057,0.14544198,92700.0,92680.0,0.11752322]
[1768789395450,0.23733341,92700.0,92680.0,0.11752322]
[1768789395757,0.20364444,92699.0,92679.0,0.09716]
[1768789395962,0.09189143,92698.0,92679.0,0.09716]
[1768789396257,0.14544198,92690.0,92680.0,0.00016186]
[1768789396851,0.14544198,92700.0,92680.0,0.11768508]
[1768789397045,0.34908642,92700.0,92680.0,0.11768508]
[1768789397449,0.09189143,92699.0,92680.0,0.00016186]
[1768789397852,0.20364444,92705.0,92684.0,0.010794]
[1768789398056,0.09716,92706.0,92691.0,0.010793]
[1768789398451,0.09716,92706.0,92691.0,0.12831622]
[1768789398651,0.09189143,92711.0,92691.0,0.12831622]
[1768789398851,0.09716,92714.0,92691.0,0.12831622]
[1768789398852,0.09716,92714.0,92692.0,0.21312624]
[1768789399052,0.09716,92714.0,92684.0,0.09716]
[1768789399053,0.11175301,92728.0,92701.0,0.21312624]
[1768789399259,0.14544198,92720.0,92702.0,0.09716]
[1768789399461,0.24733341,92720.0,92702.0,0.09716]
[1768789399662,0.24733341,92720.0,92702.0,0.09732186]
[1768789400058,0.10189143,92720.0,92702.0,0.09732186]
[1768789400254,0.24733341,92720.0,92702.0,0.09732186]
[1768789400855,0.10189143,92720.0,92702.0,0.09732186]
[1768789401159,0.09189143,92718.0,92702.0,0.09732186]
[1768789401360,0.09189143,92709.0,92687.0,0.11752322]
[1768789401561,0.09189143,92707.0,92688.0,0.02975153]
[1768789401760,0.09189143,92703.0,92689.0,0.09716]
[1768789401961,0.010791,92710.0,92683.0,0.11752322]
[1768789401962,0.10268243,92710.0,92690.0,0.03447394]
[1768789402156,0.20364444,92709.0,92690.0,0.03447394]
[1768789402357,0.09189143,92706.0,92690.0,0.03447394]
[1768789402658,0.09471959,92702.0,92682.0,0.010794]
[1768789402864,0.09471959,92701.0,92684.0,0.010794]
[1768789403165,0.09471959,92701.0,92685.0,0.02975081]
[1768789403459,0.09471959,92701.0,92684.0,0.010794]
[1768789403870,0.11369868,92702.0,92678.0,0.010794]
[1768789403871,0.09471959,92694.0,92678.0,0.010794]
[1768789404067,0.00016186,92702.0,92686.0,0.1137702]
[1768789404464,0.00011186,92702.0,92686.0,0.1137702]
[1768789404767,0.01079,92720.0,92677.0,0.13608004]
[1768789404768,0.09471959,92718.0,92693.0,0.1137702]
[1768789404968,0.09471959,92715.0,92693.0,0.1137702]
[1768789405171,0.09716,92719.0,92694.0,0.010792]
[1768789405172,0.20825641,92713.0,92694.0,0.010792]
[1768789405372,0.09471959,92712.0,92697.0,0.010792]
[1768789405964,0.09471959,92712.0,92695.0,0.00016186]
[1768789407274,0.09466959,92712.0,92695.0,0.00016186]
[1768789407973,0.09466959,92712.0,92696.0,0.010792]
[1768789408167,0.09466959,92712.0,92699.0,0.010792]
[1768789408674,0.09716,92719.0,92699.0,0.010792]
[1768789408675,0.11353682,92718.0,92699.0,0.010792]
[1768789409275,0.09471959,92717.0,92699.0,0.010792]
[1768789409474,0.11353682,92714.0,92695.0,0.00016186]
[1768789409668,0.09471959,92713.0,92695.0,0.00016186]
[1768789410068,0.09716,92719.0,92704.0,0.010791]
[1768789410560,0.09716,92719.0,92703.0,0.010791]
[1768789411569,0.09716,92719.0,92706.0,0.010791]
[1768789411778,0.09716,92719.0,92702.0,0.010792]
[1768789412079,0.20825641,92723.0,92705.0,0.010791]
[1768789412578,0.00237263,92724.0,92710.0,0.010791]
[1768789412775,0.00237263,92724.0,92710.0,0.107951]
[1768789413367,0.09709222,92724.0,92710.0,0.09716]
[1768789414069,0.20825641,92723.0,92710.0,0.09716]
[1768789414871,0.20825641,92723.0,92706.0,0.010791]
[1768789415069,0.20825641,92723.0,92707.0,0.09712]
[1768789415868,0.09471959,92722.0,92707.0,0.09712]
[1768789416073,0.11353682,92717.0,92695.0,0.00016186]
[1768789416270,0.11353682,92713.0,92696.0,0.09712]
[1768789416462,0.09471959,92711.0,92696.0,0.09712]
[1768789417274,0.09471959,92710.0,92695.0,0.00016186]
[1768789417481,0.20825641,92709.0,92695.0,0.00016186]
[1768789417674,0.09471959,92706.0,92695.0,0.00016186]
[1768789418174,0.11353682,92707.0,92683.0,0.09035436]
[1768789418175,0.09708841,92704.0,92683.0,0.09035436]
[1768789418372,0.09708841,92704.0,92684.0,0.09712]
[1768789418969,0.09708841,92702.0,92678.0,0.03892004]
[1768789419179,0.09708841,92694.0,92677.0,0.03892004]
[1768789419376,0.21109706,92693.0,92675.0,0.03892004]
[1768789419575,0.21109706,92693.0,92675.0,0.04971504]
[1768789419974,0.21109706,92693.0,92678.0,0.010794]
[1768789420179,0.010792,92703.0,92679.0,0.20931567]
[1768789420380,0.11400865,92701.0,92680.0,0.010794]
[1768789420579,0.09708841,92700.0,92676.0,0.010795]
[1768789420780,0.21109706,92698.0,92675.0,0.04971504]
[1768789420980,0.09708841,92695.0,92675.0,0.04971504]
[1768789421180,0.09708841,92694.0,92675.0,0.04971504]
[1768789421382,0.09708841,92692.0,92675.0,0.04971504]
[1768789421580,0.09708841,92690.0,92675.0,0.03892004]
[1768789421775,0.09712,92705.0,92674.0,0.03892004]
[1768789421776,0.09708841,92695.0,92674.0,0.03892004]
[1768789422075,0.09708841,92691.0,92673.0,0.13604004]
[1768789422276,0.09708841,92702.0,92682.0,0.11283356]
[1768789422476,0.00016186,92691.0,92684.0,0.12362756]
[1768789422669,0.09712,92705.0,92684.0,0.12362756]
[1768789422872,0.19420841,92705.0,92687.0,0.010793]
[1768789423076,0.09708841,92704.0,92687.0,0.010793]
[1768789423472,0.21109706,92704.0,92684.0,0.010794]
[1768789423672,0.11400865,92702.0,92684.0,0.010794]
[1768789423870,0.21109706,92702.0,92684.0,0.010794]
[1768789424270,0.09708841,92701.0,92684.0,0.010794]
[1768789424785,0.09708841,92701.0,92680.0,0.010794]
[1768789424975,0.09708841,92701.0,92683.0,0.010794]
[1768789425578,0.09708841,92700.0,92679.0,0.11283356]
[1768789425777,0.09708841,92700.0,92677.0,0.09648211]
[1768789425984,0.21109706,92700.0,92677.0,0.09648211]
[1768789426175,0.21109706,92700.0,92680.0,0.010794]
[1768789426380,0.21109706,92700.0,92682.0,0.010794]
[1768789426983,0.21109706,92700.0,92677.0,0.09648211]
[1768789426984,0.11400865,92699.0,92679.0,0.010794]
[1768789427891,0.11400865,92699.0,92677.0,0.09648211]
[1768789428089,0.11400865,92699.0,92680.0,0.14539657]
[1768789428295,0.11400865,92699.0,92676.0,0.03892004]
[1768789428589,0.11400865,92699.0,92675.0,0.04971504]
[1768789428790,0.14539657,92690.0,92675.0,0.03892004]
[1768789428986,0.09708841,92687.0,92674.0,0.13608004]
[1768789429375,0.14539657,92690.0,92674.0,0.13608004]
[1768789429993,0.21109706,92693.0,92674.0,0.09716]
[1768789430290,0.14539657,92690.0,92674.0,0.13608004]
[1768789430790,0.14539657,92690.0,92674.0,0.09716]
[1768789430988,0.14539657,92700.0,92677.0,0.09648211]
[1768789431187,0.24248498,92700.0,92678.0,0.11283356]
[1768789431379,0.24248498,92700.0,92680.0,0.02910562]
[1768789431584,0.24248498,92700.0,92684.0,0.010794]
[1768789431780,0.09708841,92699.0,92686.0,0.02910562]
[1768789432291,0.09708841,92699.0,92687.0,0.010793]
[1768789432491,0.0917002,92698.0,92686.0,0.02910562]
[1768789433292,0.0917002,92697.0,92686.0,0.02910562]
[1768789433587,0.0917002,92693.0,92677.0,0.0583346]
[1768789433788,0.20032912,92689.0,92678.0,0.010794]
[1768789434389,0.0917002,92689.0,92675.0,0.0691296]
[1768789434596,0.0917002,92688.0,92675.0,0.0691296]
[1768789434991,0.0917002,92688.0,92675.0,0.0583346]
[1768789435393,0.0917002,92688.0,92675.0,0.0691296]
[1768789435895,0.0917002,92688.0,92675.0,0.0583346]
[1768789436896,0.0917002,92688.0,92675.0,0.0691296]
[1768789437295,0.0917002,92688.0,92675.0,0.0583346]
[1768789437992,0.0917002,92688.0,92674.0,0.0583346]
[1768789438195,0.0917002,92688.0,92675.0,0.0583346]
[1768789438392,0.0917002,92685.0,92674.0,0.0583346]
[1768789439597,0.0917002,92685.0,92673.0,0.05849646]
[1768789439797,0.0917002,92690.0,92673.0,0.05849646]
[1768789439998,0.0917002,92688.0,92674.0,0.0583346]
[1768789440592,0.0917002,92687.0,92674.0,0.0583346]
[1768789441287,0.0917002,92687.0,92674.0,0.0691296]
[1768789441594,0.0917002,92685.0,92673.0,0.05849646]
[1768789441795,0.20032912,92685.0,92673.0,0.00016186]
[1768789442098,0.20032912,92685.0,92673.0,0.05849646]
[1768789442500,0.20032912,92681.0,92673.0,0.05849646]
[1768789442698,0.0917002,92681.0,92673.0,0.05849646]
[1768789442996,0.0917002,92680.0,92664.0,0.07995506]
[1768789443201,0.14539657,92674.0,92664.0,0.00237417]
[1768789443591,0.20032912,92676.0,92664.0,0.00237417]
[1768789444504,0.0917002,92675.0,92664.0,0.00237417]
[1768789446606,0.14539657,92674.0,92664.0,0.00237417]
[1768789446801,0.0917002,92663.0,92654.0,0.07766916]
[1768789447006,0.04691001,92674.0,92656.0,0.010797]
[1768789447214,0.09716,92674.0,92656.0,0.010797]
[1768789447404,0.09716,92674.0,92659.0,0.010797]
[1768789447607,0.09732186,92674.0,92659.0,0.010797]
[1768789448305,0.09732186,92674.0,92656.0,0.11806464]
[1768789448512,0.09732186,92674.0,92657.0,0.010797]
[1768789449503,0.18902206,92674.0,92653.0,0.010797]
[1768789449707,0.0917002,92673.0,92653.0,0.550357]
[1768789449907,0.0917002,92665.0,92653.0,0.53956]
[1768789450106,0.0917002,92670.0,92654.0,0.53956]
[1768789450301,0.0917002,92670.0,92652.0,0.010797]
[1768789450500,0.0917002,92670.0,92655.0,0.53956]
[1768789450907,0.0917002,92670.0,92657.0,0.53956]
[1768789451108,0.0917002,92670.0,92653.0,0.53956]
[1768789451710,0.0917002,92670.0,92656.0,0.53956]
[1768789452005,0.0917002,92670.0,92648.0,0.11806464]
[1768789452006,0.0917002,92665.0,92645.0,0.0108497]
[1768789452210,0.010797,92659.0,92648.0,0.53956]
[1768789452400,0.00842346,92659.0,92653.0,0.21235107]
[1768789452597,0.00842346,92659.0,92654.0,0.21235107]
[1768789452808,0.0917002,92657.0,92642.0,0.09716]
[1768789453003,0.0917002,92656.0,92642.0,0.09716]
[1768789453902,0.0917002,92656.0,92638.0,0.01104735]
[1768789454099,0.0917002,92656.0,92635.0,0.11806464]
[1768789454708,0.0917002,92652.0,92634.0,0.09716]
[1768789455007,0.0917002,92651.0,92630.0,0.11806464]
[1768789455408,0.0917002,92651.0,92631.0,0.0108]
[1768789456114,0.0917002,92651.0,92631.0,0.0221243]
[1768789456315,0.00016186,92655.0,92636.0,0.21543843]
[1768789456614,0.05660601,92654.0,92634.0,0.010799]
[1768789456802,0.0917002,92653.0,92634.0,0.010799]
[1768789457004,0.0916002,92653.0,92638.0,0.07758788]
[1768789457616,0.05422578,92652.0,92638.0,0.07758788]
[1768789457810,0.010798,92652.0,92637.0,0.07758788]
[1768789458009,0.010798,92652.0,92636.0,0.07758788]
[1768789458514,0.00016186,92655.0,92634.0,0.11806464]
[1768789458708,0.010797,92654.0,92632.0,0.11806464]
[1768789458909,0.0917002,92652.0,92632.0,0.11806464]
[1768789459616,0.05478258,92650.0,92631.0,0.0113243]
[1768789459817,0.05478258,92648.0,92630.0,0.07758788]
[1768789460017,0.05478258,92648.0,92629.0,0.07758788]
[1768789460216,0.0917002,92649.0,92629.0,0.08897306]
[1768789460712,0.0917002,92647.0,92629.0,0.08897306]
[1768789460912,0.14648278,92641.0,92628.0,8.947e-05]
[1768789461120,0.0917002,92639.0,92628.0,8.947e-05]
[1768789462617,0.099706,92637.0,92624.0,0.07996307]
[1768789462817,0.099706,92636.0,92624.0,0.00237519]
[1768789463219,0.099706,92636.0,92631.0,0.05814976]
[1768789463618,0.099706,92636.0,92624.0,0.00237519]
[1768789463815,8.432e-05,92635.0,92624.0,0.00237519]
[1768789464026,8.432e-05,92635.0,92617.0,0.07758788]
[1768789464027,0.15347319,92628.0,92617.0,0.07758788]
[1768789464322,0.00762888,92628.0,92615.0,0.07758788]
[1768789464512,0.05385151,92635.0,92617.0,0.11959986]
[1768789464709,0.00016195,92631.0,92617.0,0.11959986]
[1768789464910,0.00016195,92631.0,92614.0,0.07758788]
[1768789465420,0.00016195,92631.0,92613.0,0.08887129]
[1768789466311,0.00016195,92631.0,92613.0,0.09967329]
[1768789466512,0.00016195,92631.0,92616.0,0.010802]
[1768789467112,0.0058756,92631.0,92616.0,0.010802]
[1768789467920,0.00016195,92631.0,92616.0,0.21111436]
[1768789468915,0.00016195,92631.0,92617.0,0.21111436]
[1768789469222,0.00016195,92631.0,92619.0,0.21111436]
[1768789469824,0.00749345,92643.0,92613.0,0.01128341]
[1768789469825,0.010798,92646.0,92627.0,0.0915145]
[1768789470028,0.0972,92644.0,92631.0,0.0915145]
[1768789470321,0.06024999,92656.0,92636.0,0.21111436]
[1768789470525,0.0972,92661.0,92646.0,0.0915145]
[1768789470718,0.0972,92660.0,92647.0,0.11959986]
[1768789471019,0.0972,92660.0,92646.0,0.0915145]
[1768789471813,0.0972,92660.0,92644.0,0.00016195]
[1768789474917,7.3e-07,92644.0,92642.0,0.11959986]
[1768789475118,7.3e-07,92644.0,92643.0,0.0915145]
[1768789475322,7.3e-07,92644.0,92442.0,0.57901114]
[1768789475323,7.3e-07,92644.0,92633.0,0.0108]
[1768789475623,7.3e-07,92644.0,92636.0,0.010799]
[1768789477926,7.3e-07,92644.0,92634.0,0.0108]
[1768789480228,7.3e-07,92644.0,92637.0,0.010799]
[1768789482227,7.3e-07,92644.0,92640.0,0.10991354]
[1768789482428,0.00016195,92649.0,92640.0,0.10991354]
[1768789482627,0.00016195,92649.0,92637.0,0.11410182]
[1768789483227,0.00016195,92649.0,92637.0,0.12490082]
[1768789484527,0.00016195,92649.0,92637.0,0.11410182]
[1768789485321,0.00016195,92649.0,92638.0,0.010799]
[1768789485521,0.00016195,92649.0,92638.0,0.12490082]
[1768789485722,0.09235211,92662.0,92626.0,0.0972]
[1768789485723,0.010796,92667.0,92647.0,0.09911454]
[1768789485925,0.00237405,92669.0,92653.0,0.12489882]
[1768789486231,0.0972,92668.0,92653.0,0.09911454]
[1768789486531,0.0972,92668.0,92649.0,0.010798]
[1768789486929,0.0972,92668.0,92647.0,0.09911454]
[1768789487331,0.16985081,92663.0,92641.0,0.010799]
[1768789487532,0.16985081,92654.0,92634.0,0.00016195]
[1768789487725,0.16985081,92653.0,92635.0,0.010799]
[1768789487924,0.07740844,92658.0,92638.0,0.010799]
[1768789488124,0.17460844,92658.0,92638.0,0.010799]
[1768789489333,0.07740844,92657.0,92634.0,0.32137731]